[Event "57th Biel Festival MTO 2024"]
[White "Jain Kashish Manoj"]
[Black "Mata,Adilson"]
[Site "Biel"]
[Round "2.34"]
[Annotator "RC"]
[Result "1-0"]
[Date "2024.07.16"]
[WhiteElo "2308"]
[BlackElo "1971"]
[PlyCount "81"]
[TimeControl "60"]

1. e4 {[%emt 0:0:25]} e5 {[%emt 0:0:26]} 2. Nf3 {[%emt 0:0:9]} Nc6 {[%emt 0:0:8]} 3. Bb5 {[%emt 0:0:7]} a6 {[%emt 0:0:7]} 4. Ba4 {[%emt 0:0:7]} Nf6 {[%emt 0:0:9]} 5. d3 {[%emt 0:0:5]} Bc5 {[%emt 0:1:22]} 6. c3 {[%emt 0:0:18]} d6 {[%emt 0:0:54]} 7. Bg5 {[%emt 0:2:13]} b5 {[%emt 0:1:37]} 8. Bb3 {[%emt 0:0:13]} h6 {[%emt 0:0:32]} 9. Bh4 {[%emt 0:0:7]} Bb6 {[%emt 0:2:0]} 10. a4 {[%emt 0:0:23]} b4 {[%emt 0:5:29]} 11. Nbd2 {[%emt 0:1:0]} bxc3 {[%emt 0:3:38]} 12. bxc3 {[%emt 0:1:8]} Na5 {[%emt 0:0:18]} 13. Ba2 {[%emt 0:4:26]} g5 {[%emt 0:3:50]} 14. Bg3 {[%emt 0:0:29]} Nh5 {[%emt 0:1:47]} 15. Nxe5 {[%emt 0:39:58]} Nxg3 {[%emt 0:0:28]} 16. Qf3 {[%emt 0:0:7]} f5 {[%emt 0:45:40]} 17. Nf7 {[%emt 0:21:18]} Nxh1 {[%emt 0:15:16]} 18. Nxd8 {[%emt 0:0:26]} Kxd8 {[%emt 0:0:15]} 19. d4 {[%emt 0:0:24]} Re8 {[%emt 0:8:50]} 20. O-O-O {[%emt 0:1:7]} Nxf2 {[%emt 0:3:46]} 21. Qxf2 {[%emt 0:0:7]} f4 {[%emt 0:0:16]} 22. h4 {[%emt 0:3:23]} Bd7 {[%emt 0:0:13]} 23. hxg5 {[%emt 0:0:55]} hxg5 {[%emt 0:0:6]} 24. Rh1 {[%emt 0:0:12]} Bxa4 {[%emt 0:0:22]} 25. Rh5 {[%emt 0:1:26]} Rb8 {[%emt 0:0:44]} 26. Rxg5 {[%emt 0:1:37]} Rh8 {[%emt 0:0:17]} 27. Rg8+ {[%emt 0:0:11]} Rxg8 {[%emt 0:0:53]} 28. Bxg8 {[%emt 0:0:3]} Kd7 {[%emt 0:1:47]} 29. Qxf4 {[%emt 0:0:10]} Re8 {[%emt 0:1:44]} 30. Qf5+ {[%emt 0:1:45]} Kd8 {[%emt 0:0:8]} 31. Be6 {[%emt 0:0:37]} Nc6 {[%emt 0:0:38]} 32. Qf6+ {[%emt 0:0:34]} Ne7 {[%emt 0:1:14]} 33. Nc4 {[%emt 0:0:10]} Bd7 {[%emt 0:1:22]} 34. Bxd7 {[%emt 0:2:31]} Kxd7 {[%emt 0:0:6]} 35. e5 {[%emt 0:0:4]} Nc8 {[%emt 0:3:50]} 36. d5 {[%emt 0:0:7]} dxe5 {[%emt 0:5:35]} 37. Nxe5+ {[%emt 0:0:4]} Rxe5 {[%emt 0:0:33]} 38. Qxe5 {[%emt 0:0:2]} Ne7 {[%emt 0:1:45]} 39. g4 {[%emt 0:0:6]} Ke8 {[%emt 0:0:24]} 40. g5 {[%emt 0:0:7]} Kf7 {[%emt 0:0:26]} 41. Qe6+ {[%emt 0:50:22]} 1-0

[Event "57th Biel Festival MTO 2024"]
[White "Cervantes Landeiro,Thalia"]
[Black "Liu,Kimberly"]
[Site "Biel"]
[Round "2.35"]
[Annotator "RC"]
[Result "1/2-1/2"]
[Date "2024.07.16"]
[WhiteElo "2271"]
[BlackElo "1941"]
[PlyCount "74"]
[TimeControl "60"]

1. d4 {[%emt 0:0:3]} Nf6 {[%emt 0:0:8]} 2. c4 {[%emt 0:0:8]} e6 {[%emt 0:0:7]} 3. Nf3 {[%emt 0:0:6]} d5 {[%emt 0:0:11]} 4. Nc3 {[%emt 0:0:7]} Bb4 {[%emt 0:0:9]} 5. Bg5 {[%emt 0:0:48]} h6 {[%emt 0:0:23]} 6. Bxf6 {[%emt 0:0:10]} Qxf6 {[%emt 0:0:9]} 7. Qa4+ {[%emt 0:0:28]} Nc6 {[%emt 0:0:5]} 8. e3 {[%emt 0:0:27]} O-O {[%emt 0:0:21]} 9. Be2 {[%emt 0:0:21]} Bd7 {[%emt 0:0:13]} 10. Qb3 {[%emt 0:0:41]} dxc4 {[%emt 0:0:40]} 11. Qxc4 {[%emt 0:0:15]} Qe7 {[%emt 0:1:27]} 12. O-O {[%emt 0:1:19]} Na5 {[%emt 0:1:4]} 13. Qxc7 {[%emt 0:2:42]} Rac8 {[%emt 0:0:8]} 14. Qe5 {[%emt 0:0:31]} Bxc3 {[%emt 0:0:18]} 15. bxc3 {[%emt 0:0:18]} Qa3 {[%emt 0:0:5]} 16. Rfc1 {[%emt 0:21:13]} Rfd8 {[%emt 0:11:19]} 17. g4 {[%emt 0:30:42]} Rxc3 {[%emt 0:22:24]} 18. Rxc3 {[%emt 0:4:43]} Qxc3 {[%emt 0:0:3]} 19. Rf1 {[%emt 0:0:38]} f6 {[%emt 0:27:3]} 20. Qd6 {[%emt 0:4:48]} Qc6 {[%emt 0:2:58]} 21. Qxc6 {[%emt 0:1:36]} Bxc6 {[%emt 0:3:6]} 22. Rc1 {[%emt 0:7:2]} Kf8 {[%emt 0:6:26]} 23. Ne1 {[%emt 0:6:51]} Ke7 {[%emt 0:4:50]} 24. Nd3 {[%emt 0:1:20]} b6 {[%emt 0:4:42]} 25. Nb4 {[%emt 0:3:5]} Bb7 {[%emt 0:1:10]} 26. f3 {[%emt 0:1:7]} Rc8 {[%emt 0:1:28]} 27. Rxc8 {[%emt 0:0:43]} Bxc8 {[%emt 0:0:1]} 28. e4 {[%emt 0:0:35]} Kd6 {[%emt 0:1:55]} 29. Kf2 {[%emt 0:2:48]} Bd7 {[%emt 0:5:52]} 30. f4 {[%emt 0:5:29]} e5 {[%emt 0:1:17]} 31. fxe5+ {[%emt 0:5:57]} fxe5 {[%emt 0:0:4]} 32. dxe5+ {[%emt 0:1:31]} Kxe5 {[%emt 0:0:2]} 33. Ke3 {[%emt 0:0:1]} Nc6 {[%emt 0:4:13]} 34. Nd3+ {[%emt 0:0:40]} Kd6 {[%emt 0:0:20]} 35. h4 {[%emt 0:1:43]} g5 {[%emt 0:0:1]} 36. hxg5 {[%emt 0:5:58]} hxg5 {[%emt 0:5:30]} 37. Nf2 {[%emt 0:0:2]} Ne5 1/2-1/2

[Event "57th Biel Festival MTO 2024"]
[White "Gemelli,Romain"]
[Black "Schnell,Simon"]
[Site "Biel"]
[Round "2.36"]
[Annotator "RC"]
[Result "1/2-1/2"]
[Date "2024.07.16"]
[WhiteElo "2101"]
[BlackElo "2139"]
[PlyCount "74"]
[TimeControl "60"]

1. Nf3 {[%emt 0:0:8]} Nf6 {[%emt 0:0:11]} 2. g3 {[%emt 0:0:4]} g6 {[%emt 0:0:16]} 3. b3 {[%emt 0:0:10]} Bg7 {[%emt 0:1:33]} 4. Bb2 {[%emt 0:0:6]} O-O {[%emt 0:0:44]} 5. Bg2 {[%emt 0:0:4]} d5 {[%emt 0:1:4]} 6. c4 {[%emt 0:0:6]} c5 {[%emt 0:8:38]} 7. cxd5 {[%emt 0:2:5]} Qxd5 {[%emt 0:0:35]} 8. Nc3 {[%emt 0:0:18]} Qd8 {[%emt 0:6:12]} 9. d4 {[%emt 0:2:0]} Nc6 {[%emt 0:7:48]} 10. dxc5 {[%emt 0:2:45]} Qa5 {[%emt 0:0:50]} 11. O-O {[%emt 0:2:21]} Qxc5 {[%emt 0:2:26]} 12. h3 {[%emt 0:10:12]} Qh5 {[%emt 0:10:50]} 13. g4 {[%emt 0:0:47]} Qa5 {[%emt 0:1:5]} 14. Qc1 {[%emt 0:17:19]} h5 {[%emt 0:11:8]} 15. g5 {[%emt 0:0:6]} Ne8 {[%emt 0:2:45]} 16. Ne4 {[%emt 0:8:48]} Bxb2 {[%emt 0:4:51]} 17. Qxb2 {[%emt 0:0:19]} Bf5 {[%emt 0:0:55]} 18. Nfd2 {[%emt 0:9:28]} Bxe4 {[%emt 0:6:58]} 19. Nxe4 {[%emt 0:0:28]} Ng7 {[%emt 0:0:35]} 20. Rad1 {[%emt 0:4:11]} Rfd8 {[%emt 0:2:32]} 21. e3 {[%emt 0:2:8]} Nf5 {[%emt 0:4:46]} 22. Qc3 {[%emt 0:4:32]} Qxc3 {[%emt 0:14:11]} 23. Nxc3 {[%emt 0:0:6]} Nd6 {[%emt 0:2:16]} 24. Rd2 {[%emt 0:3:13]} Rac8 {[%emt 0:1:36]} 25. Rfd1 {[%emt 0:1:45]} Kf8 {[%emt 0:2:22]} 26. Kf1 {[%emt 0:6:34]} Ke8 {[%emt 0:2:31]} 27. Ke2 {[%emt 0:0:40]} Nd4+ {[%emt 0:7:7]} 28. Rxd4 {[%emt 0:0:17]} Rxc3 {[%emt 0:0:7]} 29. R4d3 {[%emt 0:5:16]} Rxd3 {[%emt 0:1:1]} 30. Rxd3 {[%emt 0:0:3]} Rc8 {[%emt 0:1:8]} 31. Kd2 {[%emt 0:0:21]} b6 {[%emt 0:1:57]} 32. a4 {[%emt 0:9:19]} Rc5 {[%emt 0:1:7]} 33. Rd5 {[%emt 0:1:15]} Rxd5+ {[%emt 0:1:4]} 34. Bxd5 {[%emt 0:0:3]} Kd7 {[%emt 0:1:23]} 35. Kd3 {[%emt 0:1:43]} e6 {[%emt 0:0:41]} 36. Bf3 {[%emt 0:0:58]} Ne8 {[%emt 0:0:39]} 37. Kc4 {[%emt 0:1:20]} Kd6 {[%emt 0:0:52]} 1/2-1/2

[Event "57th Biel Festival MTO 2024"]
[White "Ansat,Aldiyar"]
[Black "Kuandykuly,Danis"]
[Site "Biel"]
[Round "2.37"]
[Annotator "TA"]
[Result "1-0"]
[Date "2024.07.16"]
[WhiteElo "2437"]
[BlackElo "1989"]
[PlyCount "59"]
[TimeControl "60"]

{[%evp 10,59,33,27,42,31,60,38,63,52,52,64,100,80,85,85,91,81,77,86,79,91,89,83,77,86,95,91,108,102,175,169,170,170,186,152,170,162,177,188,234,150,179,174,160,177,133,91,29997,29998,29998,29999]} 1. e4 {[%emt 0:0:3]} e5 {[%emt 0:1:44]} 2. Nf3 {[%emt 0:0:7]} Nc6 {[%emt 0:0:4]} 3. Bb5 {[%emt 0:0:5]} f5 {[%emt 0:0:6]} 4. d3 {[%emt 0:1:37]} fxe4 {[%emt 0:0:11]} 5. dxe4 {[%emt 0:0:4]} Nf6 {[%emt 0:0:5]} 6. Qd3 {[%emt 0:5:21]} d6 {[%emt 0:3:52]} 7. Nc3 {[%emt 0:6:56]} Bg4 {[%emt 0:6:29][%cal Bc8g4,Bg4h5,Bh5g6][%mdl 32]} 8. Be3 {[%emt 0:4:59]} Be7 {[%emt 0:5:37] White is slightly better.} 9. Qc4 {[%emt 0:2:57]} Qd7 {[%emt 0:2:18]} 10. Ng5 {[%emt 0:11:22]} Bf8 {[%emt 0:37:34]} 11. h3 {[%emt 0:18:15]} Bh5 {[%emt 0:0:13]} 12. g4 {[%emt 0:0:5]} Bg6 {[%emt 0:4:48]} 13. O-O-O {[%emt 0:0:32] Hoping for f4.} a6 {[%emt 0:8:1]} 14. Ba4 $36 {[%emt 0:0:29][%mdl 2048] Keeping Black busy.} h6 {[%emt 0:2:39] [#] Inhibits f4.} 15. Nf3 {[%emt 0:5:50][%cal Of3e5] Nxe5! would now be deadly.} (15. Ne6 Bf7 16. Bxc6 bxc6 17. Nxf8 Bxc4 $11 )Bf7 {[%emt 0:0:15]} (15... b5 $2 16. Nxb5 axb5 17. Bxb5 Bxe4 18. Nxe5 Nxe5 19. Qe6+ (19. Bxd7+ Kxd7 20. Qb5+ Kc8 $16 )Kd8 20. Bxd7 Nexd7 21. Rhe1 $16 )16. Qe2 {[%emt 0:0:23][%cal Of3e5] Black must now prevent Nxe5!} b5 {[%emt 0:0:42]} 17. Bb3 {[%emt 0:0:12]} Bxb3 {[%emt 0:8:52]} 18. cxb3 {[%emt 0:2:8]} (18. axb3 O-O-O $14 )Qf7 {[%emt 0:4:30]} 19. Kb1 {[%emt 0:7:14]} Nd8 {[%emt 0:8:24]} (19... g6 $16 )20. g5 $18 {[%emt 0:1:11]} Nd7 {[%emt 0:2:38]} 21. gxh6 {[%emt 0:2:0]} gxh6 {[%emt 0:0:6]} 22. Nh4 {[%emt 0:0:23]} Ne6 {[%emt 0:1:4]} 23. Nf5 {[%emt 0:0:35]} Nf6 {[%emt 0:1:39]} 24. f3 {[%emt 0:1:48]} O-O-O {[%emt 0:1:52]} (24... Rh7 {was necessary.} 25. a4 Rb8 )25. Rc1 {[%emt 0:0:3][%cal Bd1c1,Bc1c6,Bc6a6][%mdl 32] Strongly threatening a4.} d5 {[%emt 0:1:31][%cal Bd6d5,Bd5d4][%mdl 32] [#]} 26. Nxb5 {[%emt 0:6:48][%mdl 512]} axb5 {[%emt 0:0:36]} 27. Qxb5 {[%emt 0:0:2]} d4 {[%emt 0:1:38]} (27... dxe4 $2 {loses.} 28. Qa6+ Kd7 29. Qc6+ Kc8 30. Rhd1 $18 )28. Rc6 {[%emt 0:0:4][%cal Oc6a6][%mdl 1024] White wants to mate with Ra6! White has strong compensation. The board is on fire. White has more active pieces.} Ne8 $2 {[%emt 0:3:18][%mdl 8192] [#]} ({Stronger than} 28... dxe3 29. Ra6 )(28... Rd6 $16 )29. Ra6 $1 {[%emt 0:1:16][%cal Ra6a8]} c5 {[%emt 0:2:37]} 30. Qc6+ {[%emt 0:0:5] Weighted Error Value: White=0.10 (very precise) /Black=0.27 (precise) .  Loses game:     	---       	Black=1      Mistake:       	---       	Black=2      Inaccurate:     	White=2     	Black=2      OK:         	White=12    	Black=7      Best:        	---       	Black=3      Brilliant:      	White=1     	---} 1-0

[Event "57th Biel Festival MTO 2024"]
[White "Tarini Goyal"]
[Black "Saraci,Nderim"]
[Site "Biel"]
[Round "2.38"]
[Annotator "TA"]
[Result "0-1"]
[Date "2024.07.16"]
[WhiteElo "2079"]
[BlackElo "2449"]
[PlyCount "144"]
[TimeControl "60"]

{[%evp 12,144,41,41,26,10,24,11,19,1,21,0,23,0,0,-14,0,-39,0,0,0,-44,-23,-44,-19,-43,-23,-5,-12,-45,-34,-34,-22,-48,-53,-49,-45,-46,-29,-31,-21,-27,-22,-69,-19,-21,0,-19,-10,-18,-14,-23,-27,-27,-11,-14,-9,-10,-16,-50,-44,-57,-52,-56,-55,-86,-93,-253,-257,-284,-279,-337,-318,-397,-368,-388,-388,-785,-617,-858,-869,-869,-863,-902,-904,-909,-880,-892,-844,-771,-628,-10136,-8985,-6522,-6514,-8029,-7439,-7439,-6522,-6414,-5501,-29964,-29965,-29975,-29976,-29975,-29977,-29979,-29980,-29980,-29981,-29981,-29982,-29982,-29983,-29983,-29984,-29984,-29983,-29984,-29985,-29985,-29986,-29985,-29986,-29984,-29985,-29985,-29986,-29985,-29986,-29987,-29988,-29988,-29987]} 1. d4 {[%emt 0:0:15]} Nf6 {[%emt 0:0:21]} 2. c4 {[%emt 0:0:9]} e6 {[%emt 0:0:35]} 3. Nc3 {[%emt 0:0:15]} d5 {[%emt 0:0:34]} 4. Nf3 {[%emt 0:0:32]} c6 {[%emt 0:2:11]} 5. e3 {[%emt 0:5:33][%cal Be2e3,Be3e4,Be4e5][%mdl 32]} Nbd7 {[%emt 0:0:31]} 6. Qc2 {[%emt 0:0:19]} dxc4 {[%emt 0:5:53]} 7. Bxc4 {[%emt 0:0:16]} b5 {[%emt 0:2:0]} 8. Be2 {[%emt 0:0:25]} Bb7 {[%emt 0:0:9]} 9. O-O {[%emt 0:2:35]} a6 {[%emt 0:0:35] The position is equal.} 10. e4 {[%emt 0:10:50]} c5 {[%emt 0:11:27]} 11. e5 {[%emt 0:0:34]} Nd5 {[%emt 0:9:41]} 12. Nxd5 {[%emt 0:12:55]} Bxd5 {[%emt 0:0:14]} 13. Be3 {[%emt 0:0:50][%cal Rd4c5]} Rc8 {[%emt 0:2:31] [#] Threatens to win with ...cxd4.} 14. Qd2 {[%emt 0:5:51]} cxd4 {[%emt 0:16:36]} 15. Qxd4 {[%emt 0:14:46]} Bc5 {[%emt 0:17:30]} 16. Qf4 {[%emt 0:3:19]} O-O {[%emt 0:1:27]} 17. a4 {[%emt 0:9:38]} bxa4 {[%emt 0:12:45]} 18. Rxa4 {[%emt 0:3:44]} a5 {[%emt 0:3:40]} 19. Bd2 {[%emt 0:8:57]} Bb6 {[%emt 0:0:48]} 20. b4 {[%emt 0:6:2]} axb4 {[%emt 0:2:2]} 21. Bxb4 {[%emt 0:0:15]} Bc5 {[%emt 0:0:11]} 22. Ba5 {[%emt 0:8:54]} Qe7 {[%emt 0:4:10]} 23. Bd2 {[%emt 0:5:43]} Rfd8 {[%emt 0:5:23]} 24. Ba5 {[%emt 0:0:17]} Bb6 {[%emt 0:1:8]} 25. Bxb6 {[%emt 0:2:19]} Nxb6 {[%emt 0:0:2]} 26. Rd4 {[%emt 0:3:51]} h6 {[%emt 0:1:6]} 27. Qg3 {[%emt 0:2:0]} (27. Rb1 $11 Bxf3 28. Bxf3 )Nd7 {[%emt 0:3:5]} ({Black should try} 27... Bxf3 $15 28. Rxd8+ Qxd8 (28... Rxd8 29. Bxf3 Qb4 30. Bh5 $15 )29. Qxf3 Rc7 )28. h3 {[%emt 0:1:24]} Rc5 {[%emt 0:3:50]} 29. Rfd1 {[%emt 0:0:40]} Rdc8 {[%emt 0:0:41]} 30. Kh2 {[%emt 0:0:56]} Rc3 {[%emt 0:1:7]} (30... Rc1 {with more complications.} 31. Rxc1 Rxc1 32. Nd2 Re1 )31. R4d3 {[%emt 0:0:57]} (31. Bd3 {is more complex.} Qc5 32. Be4 Nb6 33. Bd3 )Rxd3 {[%emt 0:1:18]} 32. Rxd3 {[%emt 0:0:4]} Rc5 {[%emt 0:0:30]} 33. Nd2 {[%emt 0:1:6]} Rc2 {[%emt 0:1:17]} 34. Bf3 {[%emt 0:0:31]} Qb4 {[%emt 0:1:1]} 35. Bxd5 {[%emt 0:0:17]} (35. Nf1 {seems wilder.} Bxf3 36. Rxd7 Be2 37. Ne3 )Rxd2 {[%emt 0:0:6]} 36. Rxd2 {[%emt 0:0:31]} Qxd2 $11 {[%emt 0:0:2][%mdl 4096] Endgame. KQB-KQN} 37. Bc6 {[%emt 0:0:27]} Nc5 {[%emt 0:0:32]} 38. Bf3 {[%emt 0:1:0]} Nd3 {[%emt 0:1:3]} 39. Bc6 $2 {[%emt 0:0:28] Loses the game.} (39. Bh5 $17 )Nxf2 $19 {[%emt 0:1:20]} 40. Bb5 {[%emt 0:0:19]} Qd4 {[%emt 0:0:35]} 41. Be2 {[%emt 0:2:43]} Ne4 {[%emt 0:1:52]} 42. Qd3 {[%emt 0:2:12]} Qxe5+ {[%emt 0:0:30]} 43. Kg1 {[%emt 0:0:6]} g6 {[%emt 0:2:4]} 44. Bf3 $2 {[%emt 0:0:11]} (44. Bd1 )Qa1+ {[%emt 0:2:39]} 45. Kh2 {[%emt 0:0:25] [#]} Qh1+ $3 {[%emt 0:4:16][%mdl 512]} 46. Kxh1 {[%emt 0:2:26]} Nf2+ {[%emt 0:0:1]} 47. Kh2 {[%emt 0:0:8]} Nxd3 {[%emt 0:0:4] KB-KN} 48. Kg3 {[%emt 0:0:6]} Kg7 {[%emt 0:0:19]} 49. Bc6 {[%emt 0:0:27]} f5 {[%emt 0:0:27]} 50. Bb5 {[%emt 0:0:4]} Nc5 {[%emt 0:0:9]} 51. h4 {[%emt 0:0:18]} Kf6 {[%emt 0:0:8]} 52. Kf4 {[%emt 0:0:21]} e5+ {[%emt 0:1:14]} 53. Kf3 {[%emt 0:0:4]} e4+ {[%emt 0:0:41]} 54. Kf4 {[%emt 0:0:49]} Ne6+ {[%emt 0:0:20]} 55. Ke3 {[%emt 0:0:12]} Ke5 {[%emt 0:0:6] aiming for ...Nd4.} 56. Be8 {[%emt 0:1:0]} Nf4 {[%emt 0:1:6] Black mates.} 57. g3 {[%emt 0:0:12]} Nd5+ {[%emt 0:0:6]} 58. Kf2 {[%emt 0:0:12]} g5 {[%emt 0:2:7]} 59. hxg5 {[%emt 0:0:21]} hxg5 {[%emt 0:0:5]} 60. Bd7 {[%emt 0:0:15]} f4 {[%emt 0:5:7]} 61. gxf4+ {[%emt 0:15:8]} gxf4 {[%emt 0:15:55]} 62. Bc6 {[%emt 0:0:42]} Ne3 {[%emt 0:0:18]} 63. Bd7 {[%emt 0:0:12]} Nf5 {[%emt 0:0:6]} 64. Bc8 {[%emt 0:0:36]} Nh4 {[%emt 0:0:28]} 65. Bb7 {[%emt 0:0:13]} Kd4 {[%emt 0:0:26]} 66. Ba6 {[%emt 0:0:18]} e3+ {[%emt 0:0:19]} 67. Ke2 {[%emt 0:0:18]} f3+ {[%emt 0:0:7]} 68. Ke1 {[%emt 0:0:4]} Ke5 {[%emt 0:1:0]} 69. Kf1 {[%emt 0:0:15]} Kf4 {[%emt 0:0:10]} 70. Ke1 {[%emt 0:0:19]} Nf5 {[%emt 0:0:12]} 71. Kf1 {[%emt 0:0:15]} Ng3+ {[%emt 0:0:16]} 72. Kg1 {[%emt 0:0:27]} Ke5 {[%emt 0:0:22] Weighted Error Value: White=0.41/Black=0.13 (very precise) .  Mistake:       	White=3     	Black=1      Inaccurate:     	White=7     	Black=1      OK:         	White=9     	Black=15     Best:        	White=1     	Black=2} 0-1

[Event "57th Biel Festival MTO 2024"]
[White "Kolbus,Dietmar"]
[Black "Borner,Daniel"]
[Site "Biel"]
[Round "2.39"]
[Annotator "RC"]
[Result "1/2-1/2"]
[Date "2024.07.16"]
[WhiteElo "2234"]
[BlackElo "2075"]
[PlyCount "169"]
[TimeControl "60"]

1. Nf3 {[%emt 0:0:4]} Nf6 {[%emt 0:0:19]} 2. c4 {[%emt 0:0:16]} g6 {[%emt 0:0:24]} 3. g3 {[%emt 0:1:36]} Bg7 {[%emt 0:0:12]} 4. Bg2 {[%emt 0:0:6]} O-O {[%emt 0:0:6]} 5. O-O {[%emt 0:0:4]} d6 {[%emt 0:0:16]} 6. d4 {[%emt 0:0:11]} Nc6 {[%emt 0:1:7]} 7. Nc3 {[%emt 0:0:10]} e5 {[%emt 0:0:54]} 8. d5 {[%emt 0:0:14]} Nb8 {[%emt 0:0:27]} 9. Ne1 {[%emt 0:5:22]} a5 {[%emt 0:0:35]} 10. b3 {[%emt 0:7:31]} Na6 {[%emt 0:0:26]} 11. Bb2 {[%emt 0:0:17]} Nd7 {[%emt 0:7:21]} 12. Nd3 {[%emt 0:2:53]} f5 {[%emt 0:1:16]} 13. e4 {[%emt 0:1:37]} Ndc5 {[%emt 0:1:3]} 14. Nxc5 {[%emt 0:30:2]} Nxc5 {[%emt 0:0:22]} 15. a3 {[%emt 0:0:23]} fxe4 {[%emt 0:19:20]} 16. Nxe4 {[%emt 0:0:21]} Nxe4 {[%emt 0:0:9]} 17. Bxe4 {[%emt 0:0:8]} Bh3 {[%emt 0:0:13]} 18. Re1 {[%emt 0:5:36]} Qd7 {[%emt 0:1:4]} 19. Bc1 {[%emt 0:2:33]} Bg4 {[%emt 0:5:43]} 20. Qd3 {[%emt 0:1:44]} b6 {[%emt 0:9:31]} 21. Ra2 {[%emt 0:0:17]} Qf7 {[%emt 0:4:4]} 22. Kg2 {[%emt 0:0:51]} Qd7 {[%emt 0:1:22]} 23. Be3 {[%emt 0:9:49]} Bh3+ {[%emt 0:0:52]} 24. Kg1 {[%emt 0:0:9]} Bf6 {[%emt 0:10:19]} 25. Rc2 {[%emt 0:10:2]} Qe7 {[%emt 0:0:53]} 26. Qd2 {[%emt 0:2:6]} Bf5 {[%emt 0:1:0]} 27. f3 {[%emt 0:0:31]} Bxe4 {[%emt 0:1:0]} 28. fxe4 {[%emt 0:0:6]} Qd7 {[%emt 0:0:19]} 29. Qe2 {[%emt 0:4:38]} Bg7 {[%emt 0:5:20]} 30. Kg2 {[%emt 0:0:16]} h5 {[%emt 0:0:58]} 31. h3 {[%emt 0:0:37]} Kh7 {[%emt 0:0:26]} 32. Rf1 {[%emt 0:0:43]} Bh6 {[%emt 0:7:19]} 33. Rxf8 {[%emt 0:0:10]} Rxf8 {[%emt 0:0:2]} 34. Bf2 {[%emt 0:0:13]} Rf7 {[%emt 0:2:27]} 35. Ra2 {[%emt 0:1:2]} Qe8 {[%emt 0:2:18]} 36. Be1 {[%emt 0:4:2]} Qe7 {[%emt 0:2:31]} 37. Qd3 {[%emt 0:7:24]} Qg5 {[%emt 0:1:34]} 38. Bd2 {[%emt 0:4:25]} Qf6 {[%emt 0:0:57]} 39. Bc3 {[%emt 0:4:16]} Qg5 {[%emt 0:2:52]} 40. Rc2 {[%emt 0:5:49]} Kg7 {[%emt 0:12:44]} 41. Bd2 {[%emt 0:51:28]} Qf6 {[%emt 0:52:25]} 42. Be1 {[%emt 0:0:0]} Qg5 {[%emt 0:0:0]} 43. Bf2 {[%emt 0:0:0]} Qf6 {[%emt 0:0:0]} 44. Qe2 {[%emt 0:0:0]} Qg5 {[%emt 0:0:0]} 45. b4 {[%emt 0:0:0]} axb4 {[%emt 0:0:0]} 46. axb4 {[%emt 0:0:0]} Qf6 {[%emt 0:0:0]} 47. c5 {[%emt 0:0:0]} bxc5 {[%emt 0:0:0]} 48. bxc5 {[%emt 0:0:0]} Bg5 {[%emt 0:0:0]} 49. Rc3 {[%emt 0:0:0]} h4 {[%emt 0:0:0]} 50. Rf3 {[%emt 0:0:0]} Qe7 {[%emt 0:0:0]} 51. Rxf7+ {[%emt 0:0:0]} Kxf7 {[%emt 0:0:0]} 52. Qf3+ {[%emt 0:0:0]} Kg7 {[%emt 0:0:0]} 53. c6 {[%emt 0:0:0]} hxg3 {[%emt 0:0:0]} 54. Qxg3 {[%emt 0:0:0]} Bd2 {[%emt 0:0:0]} 55. Qg4 {[%emt 0:0:0]} Qg5 {[%emt 0:0:0]} 56. Kf3 {[%emt 0:0:0]} Kh6 {[%emt 0:0:0]} 57. Qxg5+ {[%emt 0:0:0]} Bxg5 {[%emt 0:0:0]} 58. Kg4 {[%emt 0:0:0]} Be7 {[%emt 0:0:0]} 59. Bb6 {[%emt 0:0:0]} Bd8 {[%emt 0:0:0]} 60. Be3+ {[%emt 0:0:0]} Kg7 {[%emt 0:0:0]} 61. Bc1 {[%emt 0:12:21]} Be7 {[%emt 0:14:1]} 62. Bd2 {[%emt 0:0:8]} Bf6 {[%emt 0:1:47]} 63. Ba5 {[%emt 0:0:30]} Bd8 {[%emt 0:2:15]} 64. Bb4 {[%emt 0:0:13]} Be7 {[%emt 0:0:36]} 65. h4 {[%emt 0:0:15]} Kh6 {[%emt 0:2:2]} 66. Bd2+ {[%emt 0:3:13]} Kg7 {[%emt 0:0:7]} 67. h5 {[%emt 0:6:50]} gxh5+ {[%emt 0:1:7]} 68. Kxh5 {[%emt 0:0:3]} Kh7 {[%emt 0:0:37]} 69. Bh6 {[%emt 0:1:40]} Bf6 {[%emt 0:0:34]} 70. Be3 {[%emt 0:1:1]} Be7 {[%emt 0:0:41]} 71. Bb6 {[%emt 0:0:44]} Bd8 {[%emt 0:0:25]} 72. Ba5 {[%emt 0:0:4]} Kg7 {[%emt 0:0:24]} 73. Bb4 {[%emt 0:0:19]} Be7 {[%emt 0:0:57]} 74. Bd2 {[%emt 0:0:40]} Kh7 {[%emt 0:0:13]} 75. Be3 {[%emt 0:0:19]} Bf6 {[%emt 0:0:24]} 76. Ba7 {[%emt 0:1:1]} Be7 {[%emt 0:0:16]} 77. Bf2 {[%emt 0:1:20]} Bf6 {[%emt 0:0:45]} 78. Be3 {[%emt 0:1:46]} Be7 {[%emt 0:0:37]} 79. Bh6 {[%emt 0:0:18]} Bf6 {[%emt 0:0:20]} 80. Bf8 {[%emt 0:0:16]} Bd8 {[%emt 0:0:32]} 81. Kg4 {[%emt 0:1:5]} Kg6 {[%emt 0:0:55]} 82. Kf3 {[%emt 0:0:40]} Kh5 {[%emt 0:1:37]} 83. Kg3 {[%emt 0:0:19]} Kg5 {[%emt 0:1:32]} 84. Kf3 {[%emt 0:0:43]} Kh5 {[%emt 0:0:19]} 85. Kg3 {[%emt 0:0:16]} 1/2-1/2

[Event "57th Biel Festival MTO 2024"]
[White "Fronda,Jan Jodilyn"]
[Black "Papaux,Steve"]
[Site "Biel"]
[Round "2.40"]
[Annotator "RC"]
[Result "1/2-1/2"]
[Date "2024.07.16"]
[WhiteElo "2072"]
[BlackElo "2188"]
[PlyCount "92"]
[TimeControl "60"]

1. e4 {[%emt 0:0:27]} e5 {[%emt 0:0:4]} 2. Nf3 {[%emt 0:0:9]} Nc6 {[%emt 0:0:6]} 3. Bb5 {[%emt 0:1:20]} a6 {[%emt 0:0:6]} 4. Ba4 {[%emt 0:0:4]} Nf6 {[%emt 0:0:5]} 5. O-O {[%emt 0:1:18]} b5 {[%emt 0:0:3]} 6. Bb3 {[%emt 0:0:7]} Bc5 {[%emt 0:0:21]} 7. d3 {[%emt 0:0:40]} d6 {[%emt 0:0:47]} 8. c3 {[%emt 0:4:15]} O-O {[%emt 0:2:13]} 9. h3 {[%emt 0:0:34]} Bb6 {[%emt 0:2:37]} 10. Re1 {[%emt 0:1:42]} Ne7 {[%emt 0:1:5]} 11. d4 {[%emt 0:6:37]} Bb7 {[%emt 0:1:54]} 12. Nbd2 {[%emt 0:3:46]} Ng6 {[%emt 0:0:9]} 13. d5 {[%emt 0:9:27]} h6 {[%emt 0:3:54]} 14. Nf1 {[%emt 0:0:49]} Nh7 {[%emt 0:7:45]} 15. Ng3 {[%emt 0:3:18]} Bc8 {[%emt 0:0:48]} 16. a4 {[%emt 0:1:6]} Bd7 {[%emt 0:4:16]} 17. Qd3 {[%emt 0:3:28]} Nh4 {[%emt 0:4:53]} 18. axb5 {[%emt 0:19:44]} f5 {[%emt 0:0:41]} 19. exf5 {[%emt 0:3:43]} Nxf5 {[%emt 0:1:6]} 20. Ne4 {[%emt 0:1:46]} Nh4 {[%emt 0:4:3]} 21. Nxh4 {[%emt 0:4:57]} Qxh4 {[%emt 0:0:7]} 22. Be3 {[%emt 0:0:23]} Bxe3 {[%emt 0:0:20]} 23. Qxe3 {[%emt 0:0:14]} axb5 {[%emt 0:0:48]} 24. Bc2 {[%emt 0:5:27]} Ng5 {[%emt 0:5:45]} 25. Qg3 {[%emt 0:5:58]} Qxg3 {[%emt 0:1:30]} 26. Nxg3 {[%emt 0:0:6]} Bxh3 {[%emt 0:8:37]} 27. gxh3 {[%emt 0:9:52]} Nxh3+ {[%emt 0:0:25]} 28. Kg2 {[%emt 0:0:37]} Rxf2+ {[%emt 0:0:20]} 29. Kxh3 {[%emt 0:0:3]} Rxa1 {[%emt 0:0:5]} 30. Rxa1 {[%emt 0:0:5]} Rxc2 {[%emt 0:0:4]} 31. Ra7 {[%emt 0:0:40]} Rxb2 {[%emt 0:0:22]} 32. Rxc7 {[%emt 0:0:7]} Rd2 {[%emt 0:0:20]} 33. Nf5 {[%emt 0:0:55]} g6 {[%emt 0:1:51]} 34. Rg7+ {[%emt 0:6:58]} Kf8 {[%emt 0:0:10]} 35. Rxg6 {[%emt 0:0:2]} Rxd5 {[%emt 0:0:15]} 36. Rf6+ {[%emt 0:1:19]} Ke8 {[%emt 0:0:39]} 37. Rxd6 {[%emt 0:1:16]} Rc5 {[%emt 0:0:41]} 38. Rd3 {[%emt 0:0:19]} Kf7 {[%emt 0:1:35]} 39. Kg4 {[%emt 0:8:34]} b4 {[%emt 0:0:31]} 40. Nd6+ {[%emt 0:0:48]} Ke6 {[%emt 0:0:3]} 41. cxb4 {[%emt 0:50:4]} Rd5 {[%emt 0:50:8]} 42. Ne4 {[%emt 0:5:30]} h5+ {[%emt 0:0:5]} 43. Kxh5 {[%emt 0:2:51]} Rxd3 {[%emt 0:0:5]} 44. Nc5+ {[%emt 0:0:3]} Kd5 {[%emt 0:0:4]} 45. Nxd3 {[%emt 0:0:3]} e4 {[%emt 0:0:5]} 46. Ne1 {[%emt 0:0:23]} Kc4 {[%emt 0:0:4]} 1/2-1/2